fUSD/lending_fUSD_20251130
["ID","MTS","AMOUNT","RATE_DAILY","PERIOD"]
[395174033,1764511839559,-506.31065896,0.00015973,2]
[395174034,1764511839568,-161.07388452,0.00015973,2]
[395174035,1764511839578,-500.65013658,0.00015973,2]
[395174036,1764511839587,-160.07187961,0.00015973,2]
[395174037,1764511839597,-500.0,0.00015973,2]
[395174038,1764511839606,-500.0,0.00015973,2]
[395174039,1764511839615,-500.0,0.00015973,2]
[395174040,1764511839625,-500.0,0.00015973,2]
[395174041,1764511839634,-500.0,0.00015973,2]
[395174042,1764511839643,-500.0,0.00015973,2]
[395174043,1764511839653,-500.0,0.00015973,2]
[395174044,1764511839662,-500.0,0.00015973,2]
[395174045,1764511839671,-500.0,0.00015973,2]
[395174046,1764511839680,-500.0,0.00015973,2]
[395174047,1764511839690,-207.48162006,0.00015973,2]
[395174048,1764511839699,-500.21383285,0.00015973,2]
[395174049,1764511839710,-217.03,0.00015973,2]
[395174050,1764511839720,-200.0,0.00016029,2]
[395174051,1764511839729,-150.99,0.00016116,2]
[395174052,1764511839738,-9999.99,0.00016116,2]
[395174053,1764511839748,-217.03,0.00016247,2]
[395174054,1764511839758,-2906.24195219,0.00016321,2]
[395174055,1764511839767,-7854.95297842,0.00016365,2]
[395174056,1764511839777,-500.0,0.00016438,2]
[395174057,1764511839786,-500.0,0.00016438,2]
[395174058,1764511839796,-377.56312451,0.00016438,2]
[395174059,1764511839805,-772.98303428,0.00016438,2]
[395174060,1764511839819,-6608.79,0.00016438,2]
[395174061,1764511839829,-164.0,0.0001644,2]
[395174062,1764511839838,-900.0,0.00016453,2]
[395174063,1764511839847,-505.74952757,0.00016521,2]
[395174064,1764511839858,-1000.0,0.00016521,2]
[395174065,1764511839869,-1000.0,0.00016521,2]
[395174066,1764511839878,-1000.0,0.00016521,2]
[395174067,1764511839888,-1000.0,0.00016521,2]
[395174068,1764511839897,-1000.0,0.00016521,2]
[395174069,1764511839907,-217.31105922,0.00016521,2]
[395174070,1764511839916,-217.03,0.00016521,2]
[395174071,1764511839925,-293.65674372,0.00016603,2]
[395174072,1764511839934,-171.51045652,0.00016672,2]
[395174073,1764511839943,-1400.97258954,0.00016716,2]
[395174074,1764511839951,-433.0,0.00016755,2]
[395174075,1764511839961,-2751.0,0.00016766,2]
[395174076,1764511839970,-500.0,0.00016772,2]
[395174077,1764511839979,-533.88981491,0.00016772,2]
[395174078,1764511839988,-6000.0,0.00016772,2]
[395174079,1764511839997,-500.0,0.00016772,2]
[395174080,1764511840006,-500.0,0.00016772,2]
[395174081,1764511840015,-500.0,0.00016772,2]
[395174082,1764511840024,-312.63742487,0.00016772,2]
[395174083,1764511840034,-151.0,0.00016772,2]
[395174084,1764511840043,-250.0,0.00016772,2]
[395174085,1764511840052,-250.0,0.00016772,2]
[395174086,1764511840061,-250.0,0.00016772,2]
[395174087,1764511840070,-250.0,0.00016772,2]
[395174088,1764511840079,-250.0,0.00016772,2]
[395174089,1764511840089,-250.0,0.00016772,2]
[395174090,1764511840098,-500.0,0.00016772,2]
[395174091,1764511840117,-250.0,0.00016772,2]
[395174092,1764511840126,-5000.0,0.00016772,2]
[395174093,1764511840136,-500.0,0.00016772,2]
[395174094,1764511840147,-620.0,0.00016772,2]
[395174095,1764511840156,-250.0,0.00016772,2]
[395174096,1764511840166,-500.0,0.00016772,2]
[395174097,1764511840177,-250.0,0.00016772,2]
[395174098,1764511840186,-250.0,0.00016772,2]
[395174099,1764511840196,-250.0,0.00016772,2]
[395174100,1764511840206,-1000.0,0.00016772,2]
[395174101,1764511840216,-1000.0,0.00016772,2]
[395174102,1764511840226,-1000.0,0.00016772,2]
[395174103,1764511840235,-1000.0,0.00016772,2]
[395174104,1764511840244,-1000.0,0.00016772,2]
[395174105,1764511840254,-1000.0,0.00016772,2]
[395174106,1764511840264,-1000.0,0.00016772,2]
[395174107,1764511840274,-2514.47609339,0.00016772,2]
[395174108,1764511840283,-1000.0,0.00016772,2]
[395174109,1764511840292,-1000.0,0.00016772,2]
[395174110,1764511840301,-1000.0,0.00016772,2]
[395174111,1764511840311,-1000.0,0.00016772,2]
[395174112,1764511840320,-1000.0,0.00016772,2]
[395174113,1764511840329,-1000.0,0.00016772,2]
[395174114,1764511840338,-1000.0,0.00016772,2]
[395174115,1764511840347,-1000.0,0.00016772,2]
[395174116,1764511840357,-1000.0,0.00016772,2]
[395174117,1764511840366,-1000.0,0.00016772,2]
[395174118,1764511840375,-1000.0,0.00016772,2]
[395174119,1764511840384,-1000.0,0.00016772,2]
[395174120,1764511840395,-1000.0,0.00016772,2]
[395174121,1764511840404,-1000.0,0.00016772,2]
[395174122,1764511840413,-1000.0,0.00016772,2]
[395174123,1764511840422,-357.53456067,0.00016772,2]
[395174124,1764511840432,-578.20924308,0.00016772,2]
[395174125,1764511840441,-257.91778498,0.00016772,2]
[395174126,1764511840451,-322.6107,0.00016772,2]
[395174127,1764511840460,-217.03,0.00016795,2]
[395174128,1764511840470,-252.49293818,0.00016815,2]
[395174129,1764511840479,-552.02,0.00016818,2]
[395174130,1764511840488,-2906.24195219,0.00016818,2]
[395174131,1764511840497,-1792.10574,0.0001683,2]
[395174132,1764511840507,-150.0,0.00016853,2]
[395174133,1764511840516,-156.75181041,0.00016853,2]
[395174134,1764511840525,-150.0,0.00016853,2]
[395174135,1764511840534,-150.0,0.00016853,2]
[395174136,1764511840544,-150.0,0.00016853,2]
[395174137,1764511840553,-150.0,0.00016853,2]
[395174138,1764511840563,-150.0,0.00016853,2]
[395174139,1764511840572,-150.0,0.00016853,2]
[395174140,1764511840581,-150.0,0.00016853,2]
[395174141,1764511840591,-160.73087474,0.00016853,2]
[395174142,1764511840600,-150.0,0.00016853,2]
[395174143,1764511840609,-150.0,0.00016853,2]
[395174144,1764511840619,-158.73149787,0.00016853,2]
[395174145,1764511840628,-500.0,0.00016853,2]
[395174146,1764511840637,-7854.95297842,0.00016874,2]
[395174147,1764511840651,-269.71295789,0.000169,2]
[395174148,1764511840661,-226.01017228,0.000169,2]
[395174150,1764511840670,-280.0599736,0.000169,2]
[395174153,1764511840680,-1600.0,0.00016926,2]
[395174155,1764511840689,-1347.0,0.00016959,2]
[395174157,1764511840699,-162.60345436,0.00016967,2]
[395174159,1764511840708,-1246.1397536,0.00016968,2]
[395174161,1764511840718,-502.42313954,0.00016973,2]
[395174163,1764511840728,-162.090508,0.00016973,2]
[395174165,1764511840738,-500.0,0.00016973,2]
[395174167,1764511840748,-339.26563356,0.00016973,2]
[395174169,1764511840758,-500.0,0.00016973,2]
[395174171,1764511840768,-507.2295556,0.00016973,2]
[395174173,1764511840777,-500.0,0.00016973,2]
[395174175,1764511840787,-500.0,0.00016973,2]
[395174178,1764511840797,-500.0,0.00016973,2]
[395174180,1764511840807,-500.75968259,0.00016973,2]
[395174182,1764511840820,-500.0,0.00016973,2]
[395174184,1764511840830,-500.0,0.00016973,2]
[395174186,1764511840839,-500.0,0.00016973,2]
[395174188,1764511840849,-500.0,0.00016973,2]
[395174190,1764511840860,-366.95471126,0.00016973,2]
[395174192,1764511840870,-415.54250471,0.00016973,2]
[395174194,1764511840879,-200.00768026,0.00016973,2]
[395174196,1764511840889,-166.09514249,0.00016973,2]
[395174198,1764511840899,-232.40806133,0.00016973,2]
[395174200,1764511840909,-500.0,0.00016973,2]
[395174203,1764511840919,-500.0,0.00016973,2]
[395174205,1764511840929,-500.0,0.00016973,2]
[395174206,1764511840938,-500.0,0.00016973,2]
[395174207,1764511840947,-172.99922432,0.00016973,2]
[395174208,1764511840957,-500.0,0.00016973,2]
[395174209,1764511840966,-500.838144,0.00016973,2]
[395174210,1764511840976,-500.0,0.00016973,2]
[395174211,1764511840985,-500.0,0.00016973,2]
[395174212,1764511840997,-500.38978168,0.00016973,2]
[395174213,1764511841005,-500.0,0.00016973,2]
[395174214,1764511841015,-500.0,0.00016973,2]
[395174215,1764511841024,-500.0,0.00016973,2]
[395174216,1764511841033,-500.0,0.00016973,2]
[395174217,1764511841042,-500.0,0.00016973,2]
[395174218,1764511841051,-500.0,0.00016973,2]
[395174219,1764511841061,-500.0,0.00016973,2]
[395174220,1764511841070,-500.0,0.00016973,2]
[395174221,1764511841079,-505.47277289,0.00016983,2]
[395174222,1764511841088,-164.38079063,0.00016987,2]
[395174223,1764511841098,-150.0,0.0001699,2]
[395174224,1764511841108,-150.0,0.0001699,2]
[395174225,1764511841118,-150.0,0.0001699,2]
[395174226,1764511841127,-150.0,0.0001699,2]
[395174227,1764511841138,-150.0,0.0001699,2]
[395174228,1764511841147,-150.0,0.0001699,2]
[395174229,1764511841158,-207.95472836,0.0001699,2]
[395174230,1764511841171,-500.0,0.0001699,2]
[395174231,1764511841181,-164.38079063,0.0001699,2]
[395174232,1764511841191,-160.11734806,0.00016993,2]
[395174233,1764511841201,-231.64720255,0.00016996,2]
[395174234,1764511841211,-84570.7539693,0.00016997,2]
[395174235,1764511841221,-1657.9266272,0.00016997,2]
[395174236,1764511841230,-23651.7938511,0.00016997,2]
[395174237,1764511841240,-2128.5962102,0.00016997,2]
[395174238,1764511841250,-3730.3349113,0.00016997,2]
[395174239,1764511841259,-13306.8785771,0.00016997,2]
[395174240,1764511841270,-151.0,0.00016997,2]
[395174241,1764511841280,-151.0,0.00016997,2]
[395174242,1764511841289,-151.0,0.00016997,2]
[395174243,1764511841298,-500.0,0.00016999,2]
[395174244,1764511841307,-510.75391486,0.00016999,2]
[395174245,1764511841316,-500.0,0.00016999,2]
[395174246,1764511841325,-500.0,0.00016999,2]
[395174247,1764511841335,-500.0,0.00016999,2]
[395174248,1764511841344,-500.0,0.00016999,2]
[395174249,1764511841353,-500.0,0.00016999,2]
[395174250,1764511841362,-500.0,0.00016999,2]
[395174251,1764511841372,-500.0,0.00016999,2]
[395174252,1764511841381,-500.0,0.00016999,2]
[395174253,1764511841390,-500.0,0.00016999,2]
[395174254,1764511841399,-500.0,0.00016999,2]
[395174255,1764511841409,-3353254.78089103,0.00017,2]
[395174256,1764511841418,-160.0,0.00017,2]
[395174257,1764511841428,-250.0,0.00017,2]
[395174258,1764511841437,-250.0,0.00017,2]
[395174259,1764511841446,-250.0,0.00017,2]
[395174261,1764511841455,-250.0,0.00017,2]
[395174262,1764511841465,-250.0,0.00017,2]
[395174264,1764511841474,-250.0,0.00017,2]
[395174265,1764511841483,-250.0,0.00017,2]
[395174266,1764511841493,-250.0,0.00017,2]
[395174267,1764511841502,-250.0,0.00017,2]
[395174268,1764511841511,-250.0,0.00017,2]
[395174269,1764511841521,-250.0,0.00017,2]
[395174270,1764511841530,-250.0,0.00017,2]
[395174271,1764511841539,-250.0,0.00017,2]
[395174272,1764511841549,-250.0,0.00017,2]
[395174273,1764511841558,-250.0,0.00017,2]
[395174274,1764511841567,-250.0,0.00017,2]
[395174275,1764511841577,-250.0,0.00017,2]
[395174276,1764511841587,-250.0,0.00017,2]
[395174277,1764511841597,-200.5,0.00017,2]
[395174278,1764511841606,-250.0,0.00017,2]
[395174279,1764511841616,-2000.0,0.00017,2]
[395174280,1764511841625,-200.0,0.00017,2]
[395174281,1764511841635,-497.09,0.00017,2]
[395174282,1764511841644,-3062.0,0.00017045,2]
[395174283,1764511841654,-2041.0,0.00017046,2]
[395174284,1764511841663,-2041.0,0.00017061,2]
[395174285,1764511841672,-217.07,0.00017068,2]
[395174286,1764511841682,-1500.0,0.00017068,2]
[395174287,1764511841691,-1045.13032417,0.00017068,2]
[395174288,1764511841701,-190.81942377,0.00017068,2]
[395174289,1764511841710,-1500.0,0.00017068,2]
[395174290,1764511841721,-1500.0,0.00017068,2]
[395174291,1764511841730,-167.59,0.00017085,2]
[395174292,1764511841739,-962.0,0.00017093,2]
[395174293,1764511841748,-150.0,0.00017127,2]
[395174294,1764511841758,-200.0,0.00017127,2]
[395174295,1764511841767,-200.0,0.00017127,2]
[395174296,1764511841778,-150.0,0.00017127,2]
[395174297,1764511841787,-200.0,0.00017127,2]
[395174298,1764511841797,-285.29372692,0.00017127,2]
[395174299,1764511841806,-500.0,0.00017127,2]
[395174300,1764511841819,-200.0,0.0001717,2]
[395174301,1764511841829,-166.66,0.00017176,2]
[395174302,1764511841838,-252.0,0.00017186,2]
[395174303,1764511841847,-2041.0,0.00017193,2]
[395174304,1764511841858,-2041.0,0.00017206,2]
[395174305,1764511841867,-3062.0,0.00017236,2]
[395174306,1764511841876,-150.0,0.00017264,2]
[395174307,1764511841885,-279.0,0.00017264,2]
[395174308,1764511841896,-500.0,0.00017264,2]
[395174309,1764511841905,-2041.0,0.00017284,2]
[395174310,1764511841915,-2906.24195219,0.00017316,2]
[395174311,1764511841924,-287.07806865,0.0001732,2]
[395174312,1764511841933,-5000.0,0.0001732,2]
[395174313,1764511841942,-2351.0,0.00017337,2]
[395174314,1764511841951,-7854.95297842,0.00017383,2]
[395174315,1764511841960,-150.0,0.00017401,2]
[395174316,1764511841970,-500.0,0.00017401,2]
[395174317,1764511841980,-2041.0,0.00017404,2]
[395174318,1764511841990,-2041.0,0.00017426,2]
[395174319,1764511842000,-2041.0,0.00017467,2]
[395174320,1764511842009,-427.55165138,0.00017494,2]
[395174321,1764511842019,-1000.0,0.00017521,2]
[395174322,1764511842029,-1000.0,0.00017521,2]
[395174323,1764511842038,-1000.0,0.00017521,2]
[395174324,1764511842048,-540.53867105,0.00017521,2]
[395174325,1764511842057,-1000.0,0.00017521,2]
[395174326,1764511842066,-1000.0,0.00017521,2]
[395174327,1764511842075,-616.40948711,0.00017521,2]
[395174328,1764511842085,-1000.0,0.00017521,2]
[395174329,1764511842096,-1000.0,0.00017521,2]
[395174330,1764511842111,-1000.0,0.00017521,2]
[395174331,1764511842120,-1000.0,0.00017521,2]
[395174332,1764511842130,-1000.0,0.00017521,2]
[395174333,1764511842139,-1000.0,0.00017521,2]
[395174334,1764511842149,-1000.0,0.00017521,2]
[395174335,1764511842158,-1000.0,0.00017521,2]
[395174336,1764511842167,-1000.0,0.00017521,2]
[395174337,1764511842176,-283.77865719,0.00017521,2]
[395174338,1764511842185,-1000.0,0.00017521,2]
[395174339,1764511842195,-885.86372501,0.00017521,2]
[395174340,1764511842205,-1000.0,0.00017521,2]
[395174341,1764511842214,-1000.0,0.00017521,2]
[395174342,1764511842223,-2041.0,0.0001753,2]
[395174343,1764511842233,-165.01712022,0.00017538,2]
[395174344,1764511842243,-500.0,0.00017538,2]
[395174345,1764511842252,-5621.0,0.00017567,2]
[395174346,1764511842262,-2041.0,0.00017599,2]
[395174347,1764511842273,-2041.0,0.00017604,2]
[395174348,1764511842283,-2000.0,0.00017616,2]
[395174349,1764511842293,-2000.0,0.00017616,2]
[395174350,1764511842302,-2000.0,0.00017616,2]
[395174351,1764511842311,-373.73,0.0001764,2]
[395174352,1764511842321,-380.37,0.0001764,2]
[395174353,1764511842330,-2041.0,0.00017673,2]
[395174354,1764511842340,-500.0,0.00017675,2]
[395174355,1764511842350,-2041.0,0.00017681,2]
[395174356,1764511842359,-2041.0,0.00017723,2]
[395174357,1764511842368,-166.66,0.00017743,2]
[395174358,1764511842377,-154.01392141,0.00017808,2]
[395174359,1764511842387,-500.0,0.00017812,2]
[395174360,1764511842397,-2906.24195219,0.00017814,2]
[395174361,1764511842408,-900.0,0.00017822,2]
[395174362,1764511842418,-1792.10575,0.0001783,2]
[395174363,1764511842427,-200.0,0.00017856,2]
[395174364,1764511842437,-5000.0,0.00017868,2]
[395174365,1764511842446,-2041.0,0.00017888,2]
[395174366,1764511842455,-7854.95297842,0.00017892,2]
[395174367,1764511842465,-380.37,0.00017914,2]
[395174368,1764511842475,-500.0,0.00017949,2]
[395174369,1764511842484,-962.0,0.00017957,2]
[395174370,1764511842494,-2041.0,0.00017964,2]
[395174371,1764511842503,-250.71101206,0.00018,2]
[395174372,1764511842513,-1100.0,0.00018,2]
[395174373,1764511842523,-211.10221856,0.00018,2]
[395174374,1764511842534,-886.73060475,0.00018,2]
[395174375,1764511842543,-1182.77142217,0.00018,2]
[395174376,1764511842552,-2041.0,0.00018001,2]
[395174377,1764511842562,-3062.0,0.00018012,2]
[395174378,1764511842572,-150.0,0.00018053,2]
[395174379,1764511842583,-150.0,0.00018053,2]
[395174380,1764511842592,-150.0,0.00018053,2]
[395174381,1764511842601,-1321.0,0.00018053,2]
[395174382,1764511842611,-610.0,0.00018053,2]
[395174383,1764511842621,-3442.0,0.00018053,2]
[395174384,1764511842630,-640.0,0.00018053,2]
[395174385,1764511842641,-1258.0,0.00018053,2]
[395174386,1764511842651,-909.0,0.00018053,2]
[395174387,1764511842660,-1193.0,0.00018053,2]
[395174388,1764511842669,-2718.0,0.00018053,2]
[395174389,1764511842679,-6506.0,0.00018053,2]
[395174390,1764511842688,-736.0,0.00018067,2]
[395174391,1764511842698,-831.33630207,0.00018068,2]
[395174392,1764511842708,-1500.0,0.00018068,2]
[395174393,1764511842717,-819.78821702,0.00018068,2]
[395174394,1764511842726,-1500.0,0.00018068,2]
[395174395,1764511842736,-1500.0,0.00018068,2]
[395174396,1764511842745,-1615.0167694,0.00018068,2]
[395174397,1764511842756,-1500.0,0.00018068,2]
[395174398,1764511842766,-283.85684935,0.00018068,2]
[395174399,1764511842775,-1500.0,0.00018068,2]
[395174400,1764511842785,-1500.0,0.00018068,2]
[395174401,1764511842794,-508.98472994,0.00018068,2]
[395174402,1764511842804,-863.31336145,0.00018068,2]
[395174403,1764511842815,-578.69635007,0.00018068,2]
[395174405,1764511842827,-1500.0,0.00018068,2]
[395174406,1764511842838,-1500.0,0.00018068,2]
[395174407,1764511842848,-1000.0,0.00018068,2]
[395174408,1764511842859,-1500.0,0.00018068,2]
[395174409,1764511842869,-1000.0,0.00018082,2]
[395174410,1764511842879,-500.0,0.00018086,2]
[395174411,1764511842889,-1767.92911734,0.000181,2]
[395174412,1764511842900,-2041.0,0.0001814,2]
[395174413,1764511842909,-151.0,0.00018141,2]
[395174414,1764511842919,-267.46074303,0.00018141,2]
[395174415,1764511842928,-334.5472959,0.00018141,2]
[395174416,1764511842938,-2000.0,0.00018164,2]
[395174417,1764511842947,-2500.0,0.00018164,2]
[395174418,1764511842957,-512.94453899,0.00018164,2]
[395174419,1764511842967,-380.39,0.00018188,2]
[395174420,1764511842976,-414.93375674,0.00018223,2]
[395174421,1764511842985,-166.66,0.0001831,2]
[395174422,1764511842995,-2906.24195219,0.00018312,2]
[395174423,1764511843004,-300.0,0.00018355,2]
[395174424,1764511843013,-87916.12,0.00018356,2]
[395174425,1764511843023,-962.0,0.00018371,2]
[395174426,1764511843033,-3062.0,0.00018383,2]
[395174427,1764511843043,-250.0,0.000184,5]
[395174428,1764511843052,-7854.95297842,0.00018401,2]
[395174429,1764511843062,-5000.0,0.00018416,2]
[395174431,1764511843072,-177.88,0.00018462,2]
[395174432,1764511843081,-167.59,0.00018509,2]
[395174433,1764511843090,-2096.43313874,0.00018616,2]
[395174434,1764511843099,-560.10385674,0.00018616,2]
[395174435,1764511843108,-1650.54892794,0.00018616,2]
[395174436,1764511843118,-558.97214174,0.00018616,2]
[395174437,1764511843128,-3000.0,0.00018712,2]
[395174438,1764511843137,-1000.0,0.00018745,2]
[395174439,1764511843147,-1000.0,0.0001876,2]
[395174440,1764511843156,-150.72,0.000188,2]
[395174441,1764511843166,-150.72,0.000188,2]
[395174442,1764511843175,-150.72,0.000188,2]
[395174443,1764511843185,-150.72,0.000188,2]
[395174444,1764511843195,-150.72,0.000188,2]
[395174445,1764511843204,-150.72,0.000188,2]
[395174446,1764511843214,-150.72,0.000188,2]
[395174447,1764511843224,-150.72,0.000188,2]
[395174448,1764511843233,-150.72,0.000188,2]
[395174449,1764511843243,-150.72,0.000188,2]
[395174450,1764511843252,-150.72,0.000188,2]
[395174451,1764511843261,-150.72,0.000188,2]
[395174452,1764511843271,-150.72,0.000188,2]
[395174453,1764511843281,-150.72,0.000188,2]
[395174454,1764511843291,-150.72,0.000188,2]
[395174455,1764511843302,-150.72,0.000188,2]
[395174456,1764511843313,-150.72,0.000188,2]
[395174457,1764511843323,-150.72,0.000188,2]
[395174458,1764511843617,-150.72,0.000188,2]
[395174459,1764511843628,-150.72,0.000188,2]
[395174460,1764511843638,-150.72,0.000188,2]
[395174461,1764511843648,-150.72,0.000188,2]
[395174462,1764511843657,-150.72,0.000188,2]
[395174463,1764511843667,-150.72,0.000188,2]
[395174464,1764511843677,-150.72,0.000188,2]
[395174465,1764511843686,-150.72,0.000188,2]
[395174466,1764511843696,-150.72,0.000188,2]
[395174467,1764511843706,-150.72,0.000188,2]
[395174468,1764511843715,-150.72,0.000188,2]
[395174469,1764511843725,-150.72,0.000188,2]
[395174470,1764511843734,-150.72,0.000188,2]
[395174471,1764511843743,-150.72,0.000188,2]
[395174472,1764511843753,-150.72,0.000188,2]
[395174473,1764511843763,-150.72,0.000188,2]
[395174474,1764511843773,-150.72,0.000188,2]
[395174475,1764511843783,-150.72,0.000188,2]
[395174476,1764511843792,-150.72,0.000188,2]
[395174477,1764511843802,-150.72,0.000188,2]
[395174478,1764511843812,-150.72,0.000188,2]
[395174479,1764511843826,-150.72,0.000188,2]
[395174480,1764511843835,-150.72,0.000188,2]
[395174481,1764511843845,-150.72,0.000188,2]
[395174482,1764511843855,-150.72,0.000188,2]
[395174483,1764511843866,-150.72,0.000188,2]
[395174484,1764511843875,-150.72,0.000188,2]
[395174485,1764511843885,-150.72,0.000188,2]
[395174486,1764511843896,-150.72,0.000188,2]
[395174487,1764511843907,-150.72,0.000188,2]
[395174488,1764511843916,-150.72,0.000188,2]
[395174489,1764511843926,-150.72,0.000188,2]
[395174490,1764511843936,-150.72,0.000188,2]
[395174491,1764511843945,-1600.0,0.00018807,2]
[395174492,1764511843955,-2906.24195219,0.0001881,2]
[395174493,1764511843964,-1792.10574,0.0001883,2]
[395174494,1764511843974,-500.0,0.00018846,2]
[395174495,1764511843984,-200.0,0.00018847,2]
[395174496,1764511843994,-166.66,0.00018877,2]
[395174497,1764511844003,-300.0,0.0001889,2]
[395174498,1764511844012,-84570.7539693,0.00018891,2]
[395174499,1764511844022,-23651.7938511,0.00018891,2]
[395174500,1764511844031,-13306.8785771,0.00018892,2]
[395174501,1764511844040,-7854.95297842,0.0001891,2]
[395174502,1764511844050,-300.0,0.0001894,2]
[395174503,1764511844059,-72024.8838051,0.00018941,2]
[395174504,1764511844068,-5000.0,0.00018964,2]
[395174505,1764511844077,-497.0,0.00019,2]
[395174506,1764511844087,-5000.0,0.00019,3]
[395174507,1764511844096,-1100.0,0.00019,3]
[395174508,1764511844105,-3643.94537065,0.00019,2]
[395174509,1764511844115,-1104.0536043,0.00019,2]
[395174510,1764511844125,-300.0,0.00019,2]
[395174512,1764511844134,-79723.04500568,0.00019,2]
[395174513,1764511844144,-355.75200295,0.0001901,7]
[395174514,1764511844153,-3292.0,0.00019071,2]
[395174515,1764511844163,-201.88,0.0001914,2]
[395174516,1764511844172,-1040.40440461,0.00019173,2]
[395174517,1764511844181,-3003.55406229,0.00019178,2]
[395174518,1764511844191,-151.0,0.00019178,2]
[395174519,1764511844201,-20020.74,0.00019178,2]
[395174520,1764511844210,-3181.91,0.00019235,2]
[395174522,1764511844220,-1657.9266272,0.00019256,2]
[395174524,1764511844229,-2128.5962102,0.00019256,2]
[395174526,1764511844239,-3730.3349113,0.00019256,2]
[395174528,1764511844249,-2918.28643483,0.0001926,2]
[395174530,1764511844258,-217.21258986,0.00019274,2]
[395174531,1764511844267,-269.71295785,0.00019334,2]
[395174532,1764511844276,-3540.6049594,0.00019388,2]
[395174533,1764511844286,-1000.0,0.00019438,2]
[395174534,1764511844295,-166.66,0.00019444,2]
[395174535,1764511844305,-277.35679052,0.0001951,2]
[395174536,1764511844314,-346.92554585,0.0001951,2]
[395174537,1764511844323,-599.60298507,0.00019511,2]
[395174538,1764511844332,-5000.0,0.00019512,2]
[395174539,1764511844342,-217.21258986,0.00019601,2]
[395174540,1764511844351,-436.63,0.00019644,2]
[395174541,1764511844361,-156.587,0.00019726,2]
[395174542,1764511844371,-1792.10575,0.0001983,2]
[395174543,1764511844380,-167.59,0.00019933,2]
[395174544,1764511844390,-10856.27032548,0.0002,2]
[395174545,1764511844400,-265562.66181528,0.0002,5]
[395174546,1764511844409,-3950.0,0.0002,2]
[395174547,1764511844418,-7247.62606,0.0002,2]
[395174548,1764511844427,-1287.02140572,0.0002,2]
[395174549,1764511844436,-1038.84063173,0.0002,2]
[395174550,1764511844446,-2846.85038149,0.0002,2]
[395174551,1764511844456,-12850.06458895,0.0002,2]
[395174552,1764511844466,-514.77,0.0002,2]
[395174553,1764511844475,-1000.0,0.0002,2]
[395174554,1764511844485,-1000.0,0.0002,2]
[395174555,1764511844494,-1000.0,0.0002,2]
[395174556,1764511844504,-2403.66995145,0.0002,2]
[395174557,1764511844513,-159089.0,0.0002,7]
[395174558,1764511844523,-4824.53906399,0.0002,2]
[395174559,1764511844533,-1100.0,0.0002,4]
[395174560,1764511844543,-150.0,0.0002,7]
[395174561,1764511844553,-396.0,0.0002,2]
[395174562,1764511844562,-150.0,0.0002,2]
[395174563,1764511844572,-206.0,0.0002,2]
[395174564,1764511844581,-456.0,0.0002,2]
[395174565,1764511844591,-185.47,0.0002,2]
[395174566,1764511844600,-5394.12325961,0.0002,2]
[395174567,1764511844610,-971.0,0.0002,2]
[395174568,1764511844619,-354.46542,0.0002,2]
[395174569,1764511844628,-304.0,0.0002,2]
[395174570,1764511844638,-8720.0,0.0002001,2]
[395174571,1764511844648,-166.66,0.00020011,2]
[395174572,1764511844658,-4500.0,0.00020055,2]